[Event "DVM U12w 2023"]
[Site "Magdeburg"]
[Date "2023.12.28"]
[Round "4"]
[White "Wolf, Helena"]
[Black "Roessling, Laura Marie"]
[Result "0-1"]
[WhiteElo "1188"]
[BlackElo "1232"]
[PlyCount "139"]
[EventDate "2022.12.27"]
[EventType "team-tourn"]
[EventRounds "7"]
[EventCountry "GER"]
[TimeControl "40/5400+30:1800+30"]
[WhiteClock "0:12:41"]
[BlackClock "0:49:29"]

1. e4 {[%emt 0:00:01]} e5 {[%emt 0:00:17]} 2. Nf3 {[%emt 0:00:08]} Nc6 {[%emt 0:00:09]} 3. Bc4 {[%emt 0:00:11]} Bc5 {[%emt 0:00:12]} 4. c3 {[%emt 0:00:20]} Nf6 {[%emt 0:00:20]} 5. d3 {[%emt 0:00:20]} O-O {[%emt 0:02:58]} 6. O-O {[%emt 0:00:16]} h6 {[%emt 0:00:12]} 7. Nbd2 {[%emt 0:02:49]} d6 {[%emt 0:00:41]} 8. h3 {[%emt 0:00:58]} Be6 {[%emt 0:00:20]} 9. Bb3 {[%emt 0:04:16]} Qe7 {[%emt 0:03:06]} 10. Re1 {[%emt 0:03:12]} Bb6 {[%emt 0:02:09]} 11. Nc4 {[%emt 0:04:09]} Bxc4 {[%emt 0:01:26]} 12. Bxc4 {[%emt 0:00:19]} Na5 {[%emt 0:00:11]} 13. Bb5 {[%emt 0:01:47]} c6 {[%emt 0:00:30]} 14. Ba4 {[%emt 0:00:35]} c5 {[%emt 0:00:35]} 15. a3 {[%emt 0:03:28]} Rac8 {[%emt 0:01:43]} 16. b4 {[%emt 0:01:59]} cxb4 {[%emt 0:01:13]} 17. cxb4 {[%emt 0:01:04]} Nc6 {[%emt 0:00:32]} 18. Bb2 {[%emt 0:00:53]} Rfd8 {[%emt 0:01:27]} 19. Bb3 {[%emt 0:01:24]} a6 {[%emt 0:02:29]} 20. Rc1 {[%emt 0:01:55]} Nh7 {[%emt 0:01:24]} 21. Qd2 {[%emt 0:02:02]} Qf6 {[%emt 0:01:06]} 22. Bd5 {[%emt 0:05:13]} Ng5 {[%emt 0:04:05]} 23. Nxg5 {[%emt 0:00:35]} hxg5 {[%emt 0:00:15]} 24. Rf1 {[%emt 0:06:10]} Qe7 {[%emt 0:01:43]} 25. a4 {[%emt 0:02:32]} Nd4 {[%emt 0:00:57]} 26. Rfe1 {[%emt 0:02:44]} Ra8 {[%emt 0:06:11]} 27. a5 {[%emt 0:03:03]} Ba7 {[%emt 0:00:19]} 28. Rc3 {[%emt 0:01:52]} Rac8 {[%emt 0:01:46]} 29. Rec1 {[%emt 0:00:44]} Rxc3 {[%emt 0:00:28]} 30. Rxc3 {[%emt 0:00:27]} b5 {[%emt 0:04:01]} 31. Kf1 {[%emt 0:03:17]} Ne6 {[%emt 0:03:21]} 32. Rc6 {[%emt 0:03:59]} Nc7 {[%emt 0:02:45]} 33. Bb3 {[%emt 0:02:11]} Rd7 {[%emt 0:03:11]} 34. Bc1 {[%emt 0:03:32]} Qf6 {[%emt 0:01:24]} 35. f3 {[%emt 0:02:08]} g4 {[%emt 0:00:57]} 36. Qg5 {[%emt 0:03:07]} gxh3 {[%emt 0:00:57]} 37. Qxf6 hxg2+ {[%emt 0:00:07]} 38. Kxg2 {[%emt 0:01:14]} gxf6 {[%emt 0:00:06]} 39. Bb2 {[%emt 0:01:04]} Kg7 {[%emt 0:01:31]} 40. Kg3 {[%emt 0:00:17]} Be3 {[%emt 0:00:57]} 41. Kg4 {[%emt 0:31:11]} Kg6 {[%emt 0:31:01]} 42. Rc2 {[%emt 0:01:28]} Ne6 {[%emt 0:01:37]} 43. Bc1 {[%emt 0:02:08]} Nd4 {[%emt 0:00:55]} 44. Bxe3 {[%emt 0:00:30]} Nxc2 {[%emt 0:00:11]} 45. Bxc2 {[%emt 0:00:08]} Rc7 {[%emt 0:00:27]} 46. Bb1 {[%emt 0:02:06]} Rc3 {[%emt 0:00:50]} 47. Kg3 {[%emt 0:07:53]} Rb3 {[%emt 0:00:52]} 48. Bc2 {[%emt 0:02:34]} Rxb4 {[%emt 0:00:22]} 49. Bb6 {[%emt 0:00:33]} Rb2 {[%emt 0:00:31]} 50. Bd1 {[%emt 0:00:33]} Rd2 {[%emt 0:00:19]} 51. Bb3 {[%emt 0:00:23]} Rxd3 {[%emt 0:00:18]} 52. Bd5 {[%emt 0:00:35]} b4 {[%emt 0:00:39]} 53. Bc4 {[%emt 0:00:25]} Rc3 {[%emt 0:00:24]} 54. Bxa6 {[%emt 0:00:13]} b3 {[%emt 0:00:12]} 55. Bb7 {[%emt 0:00:33]} b2 {[%emt 0:00:29]} 56. a6 {[%emt 0:00:18]} Ra3 {[%emt 0:00:41]} 57. a7 {[%emt 0:00:52]} Rxa7 {[%emt 0:00:09]} 58. Bxa7 {[%emt 0:00:13]} b1=Q {[%emt 0:00:06]} 59. Bd5 {[%emt 0:00:51]} Qc1 {[%emt 0:00:26]} 60. Kf2 {[%emt 0:01:24]} Qb2+ {[%emt 0:00:50]} 61. Kg3 {[%emt 0:01:05]} Qd2 {[%emt 0:00:37]} 62. Bb8 {[%emt 0:01:55]} Qf4+ {[%emt 0:00:38]} 63. Kf2 {[%emt 0:01:28]} Qd2+ {[%emt 0:01:05]} 64. Kg3 {[%emt 0:00:45]} Qb4 {[%emt 0:00:15]} 65. Ba7 {[%emt 0:00:46]} Kg7 {[%emt 0:00:59]} 66. Kf2 {[%emt 0:01:36]} Qd2+ {[%emt 0:00:36]} 67. Kg3 {[%emt 0:00:45]} f5 {[%emt 0:00:44]} 68. Bc6 {[%emt 0:02:14]} f4+ {[%emt 0:00:38]} 69. Kh3 {[%emt 0:00:42]} Qe2 {[%emt 0:00:39]} 70. Kg4 {[%emt 0:00:27] normal} 0-1

[Event "DVM U12w 2023"]
[Site "Magdeburg"]
[Date "2023.12.28"]
[Round "4"]
[White "Oschinski, Mathilda"]
[Black "Böhrer, Lea Marie"]
[Result "1-0"]
[WhiteElo "1155"]
[BlackElo "939"]
[PlyCount "27"]
[EventDate "2022.12.27"]
[EventType "team-tourn"]
[EventRounds "7"]
[EventCountry "GER"]
[TimeControl "40/5400+30:1800+30"]
[WhiteClock "1:29:28"]
[BlackClock "1:26:56"]

1. d4 {[%emt 0:00:03]} d5 {[%emt 0:00:14]} 2. Nc3 {[%emt 0:00:06]} Nf6 {[%emt 0:00:49]} 3. Bf4 {[%emt 0:00:32]} Nc6 {[%emt 0:00:09]} 4. Nb5 {[%emt 0:00:11]} Rb8 {[%emt 0:01:24]} 5. Bxc7 {[%emt 0:00:14]} Qd7 {[%emt 0:00:52]} 6. Bxb8 {[%emt 0:00:21]} e5 {[%emt 0:01:17]} 7. Bxe5 {[%emt 0:00:43]} a6 {[%emt 0:01:07]} 8. Bxf6 {[%emt 0:00:53]} axb5 {[%emt 0:00:36]} 9. Bh4 {[%emt 0:00:37]} Nxd4 {[%emt 0:00:30]} 10. Qxd4 {[%emt 0:00:48]} Qc6 {[%emt 0:00:57]} 11. O-O-O {[%emt 0:01:14]} Bc5 {[%emt 0:00:24]} 12. Qxg7 {[%emt 0:01:07]} Rf8 {[%emt 0:01:12]} 13. Qg5 {[%emt 0:00:50]} Be7 {[%emt 0:00:33]} 14. Qxe7# {[%emt 0:00:23] normal} 1-0

[Event "DVM U12w 2023"]
[Site "Magdeburg"]
[Date "2023.12.28"]
[Round "4"]
[White "Mersmann, Jasmin"]
[Black "Albrecht, Sidney Jenna"]
[Result "1/2-1/2"]
[WhiteElo "1131"]
[BlackElo "1188"]
[PlyCount "92"]
[EventDate "2022.12.27"]
[EventType "team-tourn"]
[EventRounds "7"]
[EventCountry "GER"]
[TimeControl "40/5400+30:1800+30"]
[WhiteClock "1:06:57"]
[BlackClock "1:15:50"]

1. e4 {[%emt 0:00:02]} c5 {[%emt 0:00:05]} 2. Nf3 {[%emt 0:00:05]} Nc6 {[%emt 0:00:05]} 3. d4 {[%emt 0:01:03]} cxd4 {[%emt 0:00:07]} 4. Nxd4 {[%emt 0:00:07]} g6 {[%emt 0:00:06]} 5. Nc3 {[%emt 0:00:31]} Bg7 {[%emt 0:00:06]} 6. Be3 {[%emt 0:00:19]} Nf6 {[%emt 0:00:07]} 7. Bc4 {[%emt 0:00:24]} Qa5 {[%emt 0:00:09]} 8. O-O {[%emt 0:00:59]} Qb4 {[%emt 0:00:18]} 9. Nxc6 {[%emt 0:01:09]} Qxc4 {[%emt 0:01:23]} 10. Nd4 {[%emt 0:01:16]} O-O {[%emt 0:00:09]} 11. Re1 {[%emt 0:01:07]} Rd8 {[%emt 0:00:51]} 12. Nb3 {[%emt 0:01:20]} b6 {[%emt 0:02:11]} 13. Bg5 {[%emt 0:01:42]} h6 {[%emt 0:00:49]} 14. Bf4 {[%emt 0:00:36]} Bb7 {[%emt 0:01:11]} 15. f3 {[%emt 0:00:35]} Rac8 {[%emt 0:00:39]} 16. Qd2 {[%emt 0:00:56]} g5 {[%emt 0:00:50]} 17. Bg3 {[%emt 0:00:34]} e6 {[%emt 0:00:47]} 18. Bd6 {[%emt 0:00:28]} Qc6 {[%emt 0:03:36]} 19. e5 {[%emt 0:00:25]} Nd5 {[%emt 0:01:49]} 20. Nxd5 {[%emt 0:03:15]} Qxd5 {[%emt 0:00:20]} 21. Qxd5 {[%emt 0:00:41]} Bxd5 {[%emt 0:00:14]} 22. Nd4 {[%emt 0:00:38]} f6 {[%emt 0:02:35]} 23. Be7 {[%emt 0:02:58]} fxe5 {[%emt 0:01:03]} 24. Bxd8 {[%emt 0:04:50]} exd4 {[%emt 0:01:26]} 25. Be7 {[%emt 0:00:18]} Rxc2 {[%emt 0:00:56]} 26. Ba3 {[%emt 0:00:27]} d3 {[%emt 0:00:27]} 27. Rec1 {[%emt 0:00:35]} Rxc1+ {[%emt 0:01:08]} 28. Rxc1 {[%emt 0:00:27]} Bxa2 {[%emt 0:00:33]} 29. Rd1 {[%emt 0:04:13]} Bc4 {[%emt 0:01:20]} 30. Kh1 {[%emt 0:01:05]} Bd4 {[%emt 0:00:42]} 31. b3 {[%emt 0:00:41]} Bb5 {[%emt 0:00:14]} 32. Bb4 {[%emt 0:00:37]} a5 {[%emt 0:00:48]} 33. Bd2 {[%emt 0:00:16]} a4 {[%emt 0:01:19]} 34. bxa4 {[%emt 0:00:44]} Bxa4 {[%emt 0:00:12]} 35. Re1 {[%emt 0:02:08]} Kf7 {[%emt 0:00:38]} 36. Re4 {[%emt 0:00:14]} e5 {[%emt 0:00:52]} 37. g3 {[%emt 0:01:25]} Ke6 {[%emt 0:01:19]} 38. Rg4 {[%emt 0:01:57]} d5 {[%emt 0:00:38]} 39. h4 {[%emt 0:01:05]} Kd6 {[%emt 0:01:52]} 40. hxg5 {[%emt 0:00:55]} hxg5 {[%emt 0:00:16]} 41. Rxg5 {[%emt 0:30:28]} Kc5 {[%emt 0:30:10]} 42. Rf5 {[%emt 0:00:36]} b5 {[%emt 0:00:34]} 43. Rf8 {[%emt 0:01:05]} b4 {[%emt 0:00:32]} 44. Rc8+ {[%emt 0:00:17]} Kb5 {[%emt 0:00:16]} 45. Rb8+ {[%emt 0:00:15]} Kc5 {[%emt 0:00:51]} 46. Rxb4 {[%emt 0:00:45]} Be3 {[%emt 0:01:07] normal} 1/2-1/2

[Event "DVM U12w 2023"]
[Site "Magdeburg"]
[Date "2023.12.28"]
[Round "4"]
[White "Roessler, Helena"]
[Black "Seyedfakhari, Elena"]
[Result "1-0"]
[WhiteElo "1060"]
[BlackElo "860"]
[PlyCount "77"]
[EventDate "2022.12.27"]
[EventType "team-tourn"]
[EventRounds "7"]
[EventCountry "GER"]
[TimeControl "40/5400+30:1800+30"]
[WhiteClock "0:31:26"]
[BlackClock "1:26:31"]

1. Nf3 {[%emt 0:00:02]} d5 {[%emt 0:00:12]} 2. g3 {[%emt 0:00:07]} Nc6 {[%emt 0:00:25]} 3. Bg2 {[%emt 0:00:06]} Nf6 {[%emt 0:00:37]} 4. O-O {[%emt 0:00:15]} Bf5 {[%emt 0:00:30]} 5. d3 {[%emt 0:00:13]} e6 {[%emt 0:00:31]} 6. Nc3 {[%emt 0:00:27]} Bc5 {[%emt 0:00:33]} 7. Re1 {[%emt 0:00:16]} O-O {[%emt 0:00:31]} 8. Bg5 {[%emt 0:00:15]} h6 {[%emt 0:00:16]} 9. Bf4 {[%emt 0:00:18]} Ng4 {[%emt 0:01:01]} 10. Rf1 {[%emt 0:00:24]} Qe7 {[%emt 0:00:42]} 11. e4 {[%emt 0:00:30]} dxe4 {[%emt 0:00:40]} 12. dxe4 {[%emt 0:00:15]} Bg6 {[%emt 0:00:25]} 13. Qe2 {[%emt 0:06:14]} Rad8 {[%emt 0:01:00]} 14. h3 {[%emt 0:00:34]} Nf6 {[%emt 0:00:20]} 15. Rad1 {[%emt 0:00:30]} Nb4 {[%emt 0:00:34]} 16. a3 {[%emt 0:05:57]} Nc6 {[%emt 0:00:28]} 17. Ne5 {[%emt 0:19:58]} Nxe5 {[%emt 0:00:35]} 18. Bxe5 {[%emt 0:00:17]} a5 {[%emt 0:00:47]} 19. Qc4 {[%emt 0:02:16]} Nd7 {[%emt 0:00:47]} 20. Bf4 {[%emt 0:05:06]} c6 {[%emt 0:00:16]} 21. Na4 {[%emt 0:05:56]} b5 {[%emt 0:00:34]} 22. Qb3 {[%emt 0:04:58]} bxa4 {[%emt 0:00:23]} 23. Qxa4 {[%emt 0:00:11]} Bb6 {[%emt 0:01:04]} 24. Bd6 {[%emt 0:00:31]} Qf6 {[%emt 0:01:15]} 25. Bxf8 {[%emt 0:00:34]} Nxf8 {[%emt 0:00:26]} 26. Qb3 {[%emt 0:06:03]} Qe5 {[%emt 0:00:43]} 27. Qxb6 {[%emt 0:01:01]} Rc8 {[%emt 0:00:48]} 28. Rd8 {[%emt 0:03:47]} Rxd8 {[%emt 0:00:21]} 29. Qxd8 {[%emt 0:00:04]} Bxe4 {[%emt 0:00:29]} 30. Re1 {[%emt 0:00:12]} f5 {[%emt 0:00:34]} 31. f3 {[%emt 0:00:13]} Qxb2 {[%emt 0:00:36]} 32. fxe4 {[%emt 0:00:11]} fxe4 {[%emt 0:00:30]} 33. Bxe4 {[%emt 0:01:13]} Qxa3 {[%emt 0:00:31]} 34. Qd3 {[%emt 0:02:28]} Qc5+ {[%emt 0:00:25]} 35. Kg2 {[%emt 0:00:33]} Qb4 {[%emt 0:01:11]} 36. Rf1 {[%emt 0:04:14]} c5 {[%emt 0:00:51]} 37. Qf3 {[%emt 0:01:36]} Qd2+ {[%emt 0:00:36]} 38. Rf2 {[%emt 0:00:39]} Qg5 {[%emt 0:00:32]} 39. Qxf8# {[%emt 0:00:10] normal} 1-0

[Event "DVM U12w 2023"]
[Site "Magdeburg"]
[Date "2023.12.28"]
[Round "4"]
[White "Artemenko, Isabella"]
[Black "Subocz, Barbara"]
[Result "1-0"]
[WhiteElo "1041"]
[BlackElo "1169"]
[PlyCount "125"]
[EventDate "2022.12.27"]
[EventType "team-tourn"]
[EventRounds "7"]
[EventCountry "GER"]
[TimeControl "40/5400+30:1800+30"]

1. d4 {[%emt 0:00:01]} d5 {[%emt 0:00:01]} 2. Bf4 {[%emt 0:00:06]} Nf6 {[%emt 0:00:07]} 3. e3 {[%emt 0:00:06]} c5 {[%emt 0:00:42]} 4. c3 {[%emt 0:00:33]} Nc6 {[%emt 0:00:22]} 5. Bd3 {[%emt 0:00:33]} e6 {[%emt 0:03:36]} 6. Nd2 {[%emt 0:00:35]} Bd6 {[%emt 0:01:35]} 7. Bg3 {[%emt 0:00:22]} O-O {[%emt 0:00:39]} 8. Ngf3 {[%emt 0:01:09]} Re8 {[%emt 0:02:06]} 9. Ne5 {[%emt 0:04:29]} Qc7 {[%emt 0:08:13]} 10. Nxc6 {[%emt 0:04:13]} Qxc6 {[%emt 0:01:58]} 11. Nf3 {[%emt 0:04:10]} Nd7 {[%emt 0:06:43]} 12. Bc2 {[%emt 0:09:08]} a6 {[%emt 0:06:04]} 13. Qd3 {[%emt 0:06:09]} f5 {[%emt 0:06:43]} 14. Qd2 {[%emt 0:07:36]} b5 {[%emt 0:03:21]} 15. Bxd6 {[%emt 0:00:58]} Qxd6 {[%emt 0:00:25]} 16. O-O {[%emt 0:02:15]} Bb7 {[%emt 0:01:45]} 17. h3 {[%emt 0:03:34]} Rf8 {[%emt 0:05:08]} 18. Rfe1 {[%emt 0:02:52]} e5 {[%emt 0:00:44]} 19. dxe5 {[%emt 0:02:21]} Nxe5 {[%emt 0:00:21]} 20. Nxe5 {[%emt 0:00:49]} Qxe5 {[%emt 0:00:36]} 21. Rad1 {[%emt 0:00:38]} f4 {[%emt 0:04:22]} 22. Qe2 {[%emt 0:03:23]} f3 {[%emt 0:01:34]} 23. gxf3 {[%emt 0:05:37]} Rf7 {[%emt 0:02:09]} 24. f4 {[%emt 0:00:46]} Qe6 {[%emt 0:01:05]} 25. Qg4 {[%emt 0:00:14]} Qh6 {[%emt 0:01:25]} 26. Kh2 {[%emt 0:00:52]} Raf8 {[%emt 0:00:53]} 27. h4 {[%emt 0:02:39]} Bc8 {[%emt 0:01:22]} 28. Qg5 {[%emt 0:00:55]} Qe6 {[%emt 0:01:11]} 29. Qg2 {[%emt 0:01:18]} Rf6 {[%emt 0:00:26]} 30. Qxd5 {[%emt 0:00:23]} Rh6 {[%emt 0:01:06]} 31. Qxe6+ {[%emt 0:00:23]} Bxe6 {[%emt 0:00:24]} 32. Kg3 {[%emt 0:00:20]} Bf5 {[%emt 0:01:32]} 33. Bxf5 {[%emt 0:00:20]} Rxf5 {[%emt 0:00:11]} 34. Rh1 {[%emt 0:00:31]} Kf7 {[%emt 0:00:46]} 35. e4 {[%emt 0:01:06]} Rfh5 {[%emt 0:00:39]} 36. Rd7+ {[%emt 0:00:34]} Kf8 {[%emt 0:00:19]} 37. Rd5 {[%emt 0:00:17]} Rxd5 {[%emt 0:00:25]} 38. exd5 {[%emt 0:03:17]} Rd6 {[%emt 0:00:27]} 39. Rd1 {[%emt 0:00:06]} Ke7 {[%emt 0:00:27]} 40. Kf3 {[%emt 0:00:14]} Kf6 {[%emt 0:00:03]} 41. Ke4 {[%emt 0:30:10]} a5 {[%emt 0:31:17]} 42. b3 {[%emt 0:01:49]} h5 {[%emt 0:01:06]} 43. f5 {[%emt 0:00:21]} a4 {[%emt 0:02:37]} 44. bxa4 {[%emt 0:00:49]} bxa4 {[%emt 0:00:09]} 45. a3 {[%emt 0:00:43]} c4 {[%emt 0:00:37]} 46. Rd4 {[%emt 0:00:05]} g5 {[%emt 0:00:47]} 47. hxg5+ {[%emt 0:00:25]} Kxg5 {[%emt 0:00:12]} 48. Ke5 {[%emt 0:00:15]} Rd8 {[%emt 0:01:17]} 49. Rxc4 {[%emt 0:00:25]} Re8+ {[%emt 0:01:02]} 50. Kd6 {[%emt 0:00:10]} h4 {[%emt 0:00:18]} 51. Rd4 {[%emt 0:00:56]} h3 {[%emt 0:00:12]} 52. Kd7 {[%emt 0:00:10]} h2 {[%emt 0:00:15]} 53. Rd1 {[%emt 0:00:07]} Rh8 {[%emt 0:00:08]} 54. Rh1 {[%emt 0:00:15]} Kg4 {[%emt 0:00:45]} 55. f6 {[%emt 0:00:33]} Kf3 {[%emt 0:00:05]} 56. Ke7 {[%emt 0:00:05]} Kg2 {[%emt 0:00:25]} 57. Rc1 {[%emt 0:00:28]} h1=Q {[%emt 0:01:03]} 58. Rxh1 {[%emt 0:00:04]} Rxh1 {[%emt 0:00:21]} 59. f7 {[%emt 0:00:08]} Rh7 {[%emt 0:00:06]} 60. Ke8 {[%emt 0:00:05]} Rh8+ {[%emt 0:00:15]} 61. f8=Q {[%emt 0:00:09]} Rxf8+ {[%emt 0:00:14]} 62. Kxf8 {[%emt 0:00:05]} Kxf2 {[%emt 0:00:39]} 63. d6 {[%emt 0:00:33] normal} 1-0

[Event "DVM U12w 2023"]
[Site "Magdeburg"]
[Date "2023.12.28"]
[Round "4"]
[White "Winkler, Anni"]
[Black "Nehrukumar, Rithika"]
[Result "0-1"]
[WhiteElo "1038"]
[BlackElo "989"]
[PlyCount "100"]
[EventDate "2022.12.27"]
[EventType "team-tourn"]
[EventRounds "7"]
[EventCountry "GER"]
[TimeControl "40/5400+30:1800+30"]
[WhiteClock "0:58:31"]
[BlackClock "1:18:50"]

1. e4 {[%emt 0:00:02]} e5 {[%emt 0:00:08]} 2. Nf3 {[%emt 0:00:11]} Nc6 {[%emt 0:00:11]} 3. Bc4 {[%emt 0:00:21]} Bc5 {[%emt 0:00:29]} 4. c3 {[%emt 0:00:22]} Nf6 {[%emt 0:00:13]} 5. d3 {[%emt 0:01:20]} d5 {[%emt 0:01:36]} 6. exd5 {[%emt 0:02:13]} Nxd5 {[%emt 0:00:21]} 7. Nxe5 {[%emt 0:02:58]} Nxe5 {[%emt 0:00:26]} 8. d4 {[%emt 0:00:09]} Bb6 {[%emt 0:02:25]} 9. dxe5 {[%emt 0:00:21]} Be6 {[%emt 0:00:29]} 10. O-O {[%emt 0:01:11]} O-O {[%emt 0:00:25]} 11. Qd3 {[%emt 0:02:33]} c6 {[%emt 0:00:56]} 12. Be3 {[%emt 0:02:06]} Bc7 {[%emt 0:00:45]} 13. f4 {[%emt 0:06:37]} b5 {[%emt 0:01:07]} 14. Bb3 {[%emt 0:00:37]} Bb6 {[%emt 0:01:00]} 15. Bxb6 {[%emt 0:01:15]} Qxb6+ {[%emt 0:04:08]} 16. Qd4 {[%emt 0:01:03]} Qxd4+ {[%emt 0:01:39]} 17. cxd4 {[%emt 0:00:06]} Ne3 {[%emt 0:00:35]} 18. Rf3 {[%emt 0:09:10]} Bxb3 {[%emt 0:00:36]} 19. axb3 {[%emt 0:00:42]} Nc2 {[%emt 0:01:51]} 20. Ra6 {[%emt 0:01:05]} Nb4 {[%emt 0:00:15]} 21. Ra5 {[%emt 0:01:03]} a6 {[%emt 0:00:57]} 22. Rc3 {[%emt 0:01:06]} Rfd8 {[%emt 0:00:30]} 23. Na3 {[%emt 0:00:41]} Rxd4 {[%emt 0:00:38]} 24. Nc2 {[%emt 0:00:24]} Rd1+ {[%emt 0:00:43]} 25. Kf2 {[%emt 0:02:31]} Rd2+ {[%emt 0:00:07]} 26. Ke3 {[%emt 0:03:56]} Rxc2 {[%emt 0:00:16]} 27. Rxc2 {[%emt 0:00:18]} Nxc2+ {[%emt 0:00:08]} 28. Kd2 {[%emt 0:00:45]} Nd4 {[%emt 0:00:23]} 29. Kd3 {[%emt 0:00:44]} Nxb3 {[%emt 0:00:23]} 30. Ra3 {[%emt 0:01:15]} Nc5+ {[%emt 0:00:22]} 31. Kd4 {[%emt 0:00:37]} Ne6+ {[%emt 0:00:16]} 32. Ke3 {[%emt 0:00:19]} f5 {[%emt 0:00:44]} 33. h3 {[%emt 0:00:46]} Ra7 {[%emt 0:04:46]} 34. g4 {[%emt 0:00:13]} g6 {[%emt 0:00:19]} 35. Rc3 {[%emt 0:00:41]} c5 {[%emt 0:00:48]} 36. Rd3 {[%emt 0:00:29]} a5 {[%emt 0:00:40]} 37. Rd6 {[%emt 0:00:49]} Kf7 {[%emt 0:00:36]} 38. h4 {[%emt 0:01:28]} b4 {[%emt 0:01:26]} 39. h5 {[%emt 0:00:27]} fxg4 {[%emt 0:00:11]} 40. hxg6+ {[%emt 0:00:12]} hxg6 {[%emt 0:00:12]} 41. Kf2 {[%emt 0:30:13]} a4 {[%emt 0:30:36]} 42. Kg3 {[%emt 0:00:20]} a3 {[%emt 0:00:11]} 43. bxa3 {[%emt 0:00:30]} bxa3 {[%emt 0:00:06]} 44. Kxg4 {[%emt 0:00:12]} a2 {[%emt 0:00:06]} 45. f5 {[%emt 0:00:11]} gxf5+ {[%emt 0:00:11]} 46. Kxf5 {[%emt 0:00:07]} a1=Q {[%emt 0:00:10]} 47. Rxe6 {[%emt 0:00:22]} Qf1+ {[%emt 0:00:08]} 48. Kg5 {[%emt 0:00:21]} Kxe6 {[%emt 0:00:12]} 49. Kh5 {[%emt 0:01:07]} Qg1 {[%emt 0:00:30]} 50. Kh4 {[%emt 0:00:30]} Rh7# {[%emt 0:00:30] normal} 0-1

[Event "DVM U12w 2023"]
[Site "Magdeburg"]
[Date "2023.12.28"]
[Round "4"]
[White "Ulianova, Anna"]
[Black "Daaboul, Dima"]
[Result "0-1"]
[WhiteElo "1036"]
[BlackElo "1184"]
[PlyCount "48"]
[EventDate "2022.12.27"]
[EventType "team-tourn"]
[EventRounds "7"]
[EventCountry "GER"]
[TimeControl "40/5400+30:1800+30"]
[WhiteClock "0:51:53"]
[BlackClock "0:55:34"]

1. e4 {[%emt 0:00:02]} d5 {[%emt 0:00:27]} 2. exd5 {[%emt 0:00:10]} Nf6 {[%emt 0:00:11]} 3. Nf3 {[%emt 0:00:22]} Nxd5 {[%emt 0:00:18]} 4. Bc4 {[%emt 0:00:16]} Nf6 {[%emt 0:03:45]} 5. d4 {[%emt 0:00:27]} Bg4 {[%emt 0:02:10]} 6. c3 {[%emt 0:00:32]} e6 {[%emt 0:01:45]} 7. h3 {[%emt 0:00:14]} Bh5 {[%emt 0:00:56]} 8. Be3 {[%emt 0:00:54]} Nc6 {[%emt 0:02:35]} 9. Nbd2 {[%emt 0:00:43]} Bd6 {[%emt 0:00:41]} 10. O-O {[%emt 0:04:06]} O-O {[%emt 0:02:27]} 11. Bd3 {[%emt 0:00:53]} e5 {[%emt 0:01:21]} 12. Bb1 {[%emt 0:02:55]} Re8 {[%emt 0:05:00]} 13. Ne4 {[%emt 0:08:43]} exd4 {[%emt 0:05:59]} 14. Nxd6 {[%emt 0:00:42]} Qxd6 {[%emt 0:01:26]} 15. cxd4 {[%emt 0:00:38]} Rad8 {[%emt 0:01:19]} 16. Bg5 {[%emt 0:20:02]} h6 {[%emt 0:01:33]} 17. Bxf6 {[%emt 0:00:11]} Qxf6 {[%emt 0:00:19]} 18. g4 {[%emt 0:05:37]} Nxd4 {[%emt 0:02:17]} 19. Nxd4 {[%emt 0:00:21]} Rxd4 {[%emt 0:00:12]} 20. Qc2 {[%emt 0:01:02]} Bg6 {[%emt 0:01:03]} 21. Qxc7 {[%emt 0:00:13]} Bxb1 {[%emt 0:02:09]} 22. Raxb1 {[%emt 0:00:22]} Qh4 {[%emt 0:05:30]} 23. Rbe1 {[%emt 0:00:25]} Rxe1 {[%emt 0:01:59]} 24. Qc8+ {[%emt 0:00:47]} Rd8 {[%emt 0:01:34] normal} 0-1

[Event "DVM U12w 2023"]
[Site "Magdeburg"]
[Date "2023.12.28"]
[Round "4"]
[White "Haas, Valentina"]
[Black "Martin, Helene"]
[Result "1/2-1/2"]
[WhiteElo "1010"]
[BlackElo "989"]
[PlyCount "41"]
[EventDate "2022.12.27"]
[EventType "team-tourn"]
[EventRounds "7"]
[EventCountry "GER"]
[TimeControl "40/5400+30:1800+30"]
[WhiteClock "1:27:35"]
[BlackClock "1:07:50"]

1. d4 {[%emt 0:00:02]} Nf6 {[%emt 0:00:05]} 2. e3 {[%emt 0:00:07]} e6 {[%emt 0:00:09]} 3. Bd3 {[%emt 0:00:09]} Be7 {[%emt 0:00:36]} 4. f4 {[%emt 0:00:19]} O-O {[%emt 0:01:18]} 5. Nf3 {[%emt 0:00:11]} d6 {[%emt 0:00:43]} 6. O-O {[%emt 0:00:18]} b6 {[%emt 0:00:36]} 7. Qe1 {[%emt 0:00:36]} c5 {[%emt 0:01:49]} 8. Qh4 {[%emt 0:00:14]} g6 {[%emt 0:04:39]} 9. Ng5 {[%emt 0:01:15]} Nbd7 {[%emt 0:01:55]} 10. Rf3 {[%emt 0:00:27]} Kg7 {[%emt 0:00:40]} 11. Rh3 {[%emt 0:00:19]} Rh8 {[%emt 0:00:10]} 12. Qh6+ {[%emt 0:01:41]} Kg8 {[%emt 0:01:14]} 13. Nc3 {[%emt 0:00:56]} Qf8 {[%emt 0:03:16]} 14. Nce4 {[%emt 0:01:32]} Qxh6 {[%emt 0:00:41]} 15. Rxh6 {[%emt 0:00:15]} c4 {[%emt 0:02:53]} 16. Bxc4 {[%emt 0:00:36]} d5 {[%emt 0:00:11]} 17. Nxf6+ {[%emt 0:00:22]} Nxf6 {[%emt 0:01:10]} 18. Bb5 {[%emt 0:00:38]} Kg7 {[%emt 0:08:56]} 19. Rh3 {[%emt 0:00:24]} Ne8 {[%emt 0:01:18]} 20. Bc6 {[%emt 0:00:38]} Rb8 {[%emt 0:00:21]} 21. Bd2 {[%emt 0:02:26] normal} 1/2-1/2

[Event "DVM U12w 2023"]
[Site "Magdeburg"]
[Date "2023.12.28"]
[Round "4"]
[White "Kuhlmann, Naya"]
[Black "Fruth, Julia"]
[Result "0-1"]
[WhiteElo "1005"]
[BlackElo "1296"]
[PlyCount "56"]
[EventDate "2022.12.27"]
[EventType "team-tourn"]
[EventRounds "7"]
[EventCountry "GER"]
[TimeControl "40/5400+30:1800+30"]
[WhiteClock "0:45:54"]
[BlackClock "0:55:29"]

1. e4 {[%emt 0:00:03]} c5 {[%emt 0:00:05]} 2. Nf3 {[%emt 0:00:13]} d6 {[%emt 0:00:12]} 3. d4 {[%emt 0:00:17]} cxd4 {[%emt 0:00:07]} 4. Nxd4 {[%emt 0:00:21]} Nf6 {[%emt 0:00:03]} 5. Nc3 {[%emt 0:00:13]} a6 {[%emt 0:00:05]} 6. Be3 {[%emt 0:00:47]} e5 {[%emt 0:00:46]} 7. Nb3 {[%emt 0:04:31]} Be6 {[%emt 0:00:11]} 8. Bd3 {[%emt 0:01:50]} Be7 {[%emt 0:00:55]} 9. O-O {[%emt 0:00:28]} O-O {[%emt 0:00:15]} 10. Re1 {[%emt 0:00:48]} Nbd7 {[%emt 0:00:43]} 11. Qe2 {[%emt 0:01:30]} Qc7 {[%emt 0:01:37]} 12. Bg5 {[%emt 0:01:55]} Rac8 {[%emt 0:01:08]} 13. Rac1 {[%emt 0:04:35]} Rfd8 {[%emt 0:01:22]} 14. Bd2 {[%emt 0:04:30]} b5 {[%emt 0:06:28]} 15. a3 {[%emt 0:01:31]} Nb6 {[%emt 0:02:50]} 16. f3 {[%emt 0:04:03]} Nc4 {[%emt 0:02:17]} 17. Bxc4 {[%emt 0:02:58]} Bxc4 {[%emt 0:00:43]} 18. Qf2 {[%emt 0:00:20]} Rd7 {[%emt 0:04:48]} 19. Qg3 {[%emt 0:07:16]} Kh8 {[%emt 0:02:30]} 20. Rcd1 {[%emt 0:02:43]} Rcd8 {[%emt 0:03:40]} 21. Be3 {[%emt 0:00:49]} d5 {[%emt 0:03:12]} 22. Nb1 {[%emt 0:10:19]} dxe4 {[%emt 0:02:12]} 23. Nc3 {[%emt 0:01:53]} exf3 {[%emt 0:02:27]} 24. Qf2 {[%emt 0:00:18]} Ng4 {[%emt 0:08:59]} 25. Qg3 {[%emt 0:02:39]} Nxe3 {[%emt 0:00:44]} 26. Rxe3 {[%emt 0:01:13]} Rxd1+ {[%emt 0:00:21]} 27. Nxd1 {[%emt 0:00:10]} Rxd1+ {[%emt 0:00:11]} 28. Kf2 {[%emt 0:00:23]} Rf1# {[%emt 0:00:10] normal} 0-1